{"text_format":"1","workbook":"xlsx","n_sheets":4,"sheets":["Setup Data","Article 118","Article 120","Article 164"],"not_rendered":{"charts":0,"images":0,"macros":1,"external_links":0,"defined_names":8,"comments":0,"pivot_tables":0},"unopened":[],"bounds":{"document_bytes":16777216,"sheet_cells":100000,"rows_first":2000,"rows_last":500,"rows_between":2000,"halvings":0,"cell_chars":16384,"cell_head_chars":4096},"cells_cut":0,"cells_raw":0,"read":"whole","date_system":"1900"}

{"sheet":"Setup Data","index":0,"n_rows":21,"n_cols":11,"rows_kept":21,"cut":false,"hidden":false,"merged":[[0,9,0,10],[0,0,0,7],[15,0,16,7],[16,9,16,10],[10,9,10,10]]}
["Setup ",null,null,null,null,null,null,null,null,"FAQ "]
["year",2025,null,null,null,null,null,null,null,"How do I add new Articles?","You can add as many artcles as you want in the articles cell splitting them by a ,"]
["query data",{"$f":"TODAY()","v":"2025-08-06"},null,null,null,null,null,null,null,"How do we know what the forecast offset is?","The forecast off set is in based on the the default customer of the av, as a reminder this means if you have more than one av with the same customer and want different offsets this wont work, due to how alpla prod works"]
["articles","118,120,164",null,null,null,null,null,null,null,"In the background will all data be pulled?","The only data that will be pulled in to this file is data related to the articles you have entered."]
["server","localhost"]
["plantToken","test"]
[]
[]
[]
[]
[null,null,null,null,null,null,null,null,null,"General info"]
[null,null,null,null,null,null,null,null,null,"All data is pulled from alplaprod no manual entry of numbers is accepted, anything manual will be over written by the scripts, with the exception of comments on why the line(s) was down this will stay on this line."]
[null,null,null,null,null,null,null,null,null,"intial inventory will be what was in stock on January 1st of the select year."]
[]
[]
["Data below is for reference only, it will be over written if you change the article data"]
[null,null,null,null,null,null,null,null,null,"Master Data insturctions"]
["av","alias","loadingUnitsPerTruck","qtyPerTruck","LoadingUnitPieces","min","max",null,null,"Setting Customer Offset for forecast"]
[120,"43836DA HDPE Newton 10oz White",22,152152,6916,4004364,5000268,null,null,"Setting inventory limits"]
[164,"206950 HDPE Trigger 16oz Orange Color orange",60,61200,1020,122400,159120,null,null,"Adding forecast via lst"]
[118,"45300DA HDPE Newton 8oz White",22,173888,7904,16005600,20005024]

{"sheet":"Article 118","index":1,"n_rows":31,"n_cols":2,"rows_kept":31,"cut":false,"hidden":false,"merged":[[2,0,2,1]]}
[]
["AV",118]
["Date"]
["Date"]
[{"$f":"TEXT(B5,\"dddd\")","v":"Wednesday"},{"$f":"DATE(2025, 1,1)","v":"2025-01-01"}]
["Thursday",{"$f":"B5 + 1","v":"2025-01-02"}]
["Friday","2025-01-03"]
["Saturday","2025-01-04"]
["Sunday","2025-01-05"]
["Monday","2025-01-06"]
["Tuesday","2025-01-07"]
["Wednesday","2025-01-08"]
["Thursday","2025-01-09"]
["Friday","2025-01-10"]
["Saturday","2025-01-11"]
["Sunday","2025-01-12"]
["Monday","2025-01-13"]
["Tuesday","2025-01-14"]
["Wednesday","2025-01-15"]
["Thursday","2025-01-16"]
["Friday","2025-01-17"]
["Saturday","2025-01-18"]
["Sunday","2025-01-19"]
["Monday","2025-01-20"]
["Tuesday","2025-01-21"]
["Wednesday","2025-01-22"]
["Thursday","2025-01-23"]
["Friday","2025-01-24"]
["Saturday","2025-01-25"]
["Sunday","2025-01-26"]
["Monday","2025-01-27"]

{"sheet":"Article 120","index":2,"n_rows":31,"n_cols":2,"rows_kept":31,"cut":false,"hidden":false,"merged":[[2,0,2,1]]}
[]
["AV",120]
["Date"]
["Date"]
[{"$f":"TEXT(B5,\"dddd\")","v":"Wednesday"},{"$f":"DATE(2025, 1,1)","v":"2025-01-01"}]
["Thursday",{"$f":"B5 + 1","v":"2025-01-02"}]
["Friday","2025-01-03"]
["Saturday","2025-01-04"]
["Sunday","2025-01-05"]
["Monday","2025-01-06"]
["Tuesday","2025-01-07"]
["Wednesday","2025-01-08"]
["Thursday","2025-01-09"]
["Friday","2025-01-10"]
["Saturday","2025-01-11"]
["Sunday","2025-01-12"]
["Monday","2025-01-13"]
["Tuesday","2025-01-14"]
["Wednesday","2025-01-15"]
["Thursday","2025-01-16"]
["Friday","2025-01-17"]
["Saturday","2025-01-18"]
["Sunday","2025-01-19"]
["Monday","2025-01-20"]
["Tuesday","2025-01-21"]
["Wednesday","2025-01-22"]
["Thursday","2025-01-23"]
["Friday","2025-01-24"]
["Saturday","2025-01-25"]
["Sunday","2025-01-26"]
["Monday","2025-01-27"]

{"sheet":"Article 164","index":3,"n_rows":31,"n_cols":2,"rows_kept":31,"cut":false,"hidden":false,"merged":[[2,0,2,1]]}
[]
["AV",164]
["Date"]
["Date"]
[{"$f":"TEXT(B5,\"dddd\")","v":"Wednesday"},{"$f":"DATE(2025, 1,1)","v":"2025-01-01"}]
["Thursday",{"$f":"B5 + 1","v":"2025-01-02"}]
["Friday","2025-01-03"]
["Saturday","2025-01-04"]
["Sunday","2025-01-05"]
["Monday","2025-01-06"]
["Tuesday","2025-01-07"]
["Wednesday","2025-01-08"]
["Thursday","2025-01-09"]
["Friday","2025-01-10"]
["Saturday","2025-01-11"]
["Sunday","2025-01-12"]
["Monday","2025-01-13"]
["Tuesday","2025-01-14"]
["Wednesday","2025-01-15"]
["Thursday","2025-01-16"]
["Friday","2025-01-17"]
["Saturday","2025-01-18"]
["Sunday","2025-01-19"]
["Monday","2025-01-20"]
["Tuesday","2025-01-21"]
["Wednesday","2025-01-22"]
["Thursday","2025-01-23"]
["Friday","2025-01-24"]
["Saturday","2025-01-25"]
["Sunday","2025-01-26"]
["Monday","2025-01-27"]